fUST/lending_fUST_20251026
["ID","MTS","AMOUNT","RATE_DAILY","PERIOD"]
[392413412,1761448938981,-10000.01,0.0001486,2]
[392413413,1761448944600,-10000.01,0.0001486,2]
[392413414,1761448944710,-10000.01,0.0001486,2]
[392413415,1761448944832,-10000.01,0.0001486,2]
[392413416,1761448944964,-10000.01,0.0001486,2]
[392413417,1761448945112,-10000.01,0.0001486,2]
[392413418,1761448950801,-10000.01,0.0001486,2]
[392413419,1761448950995,-10000.01,0.0001486,2]
[392413420,1761448951167,-10000.01,0.0001486,2]
[392413421,1761448951264,-10000.01,0.0001486,2]
[392413422,1761448951375,-10000.01,0.0001486,2]
[392413423,1761448956845,-250.0,0.00014707,2]
[392413424,1761448956880,-9500.01,0.0001486,2]
[392413425,1761448956946,-10000.01,0.0001486,2]
[392413426,1761448957105,-10000.01,0.0001486,2]
[392413427,1761448957241,-10000.01,0.0001486,2]
[392413428,1761448962926,-10000.01,0.0001486,2]
[392413429,1761448963068,-10000.01,0.0001486,2]
[392413430,1761448963211,-10000.01,0.0001486,2]
[392413431,1761448963346,-10000.01,0.0001486,2]
[392413432,1761448963441,-10000.01,0.0001486,2]
[392413433,1761448963569,-10000.01,0.0001486,2]
[392413434,1761448963682,-10000.01,0.0001486,2]
[392413435,1761448979326,10000.01,0.00014765,2]
[392413436,1761448979347,10000.01,0.00014765,2]
[392413437,1761448979369,10000.01,0.00014765,2]
[392413438,1761448979390,10000.01,0.00014765,2]
[392413439,1761448979412,10000.01,0.00014765,2]
[392413440,1761448979434,10000.01,0.00014765,2]
[392413441,1761448979456,10000.01,0.00014765,2]
[392413442,1761448979477,10000.01,0.00014765,2]
[392413443,1761448979497,10000.01,0.00014765,2]
[392413444,1761448979517,10000.01,0.00014765,2]
[392413445,1761448993335,-300.0,0.00014764,2]
[392413446,1761449014694,-10000.01,0.00014765,2]
[392413447,1761449014828,-10000.01,0.00014765,2]
[392413448,1761449014950,-10000.01,0.00014765,2]
[392413449,1761449015076,-10000.01,0.00014765,2]
[392413450,1761449015180,-10000.01,0.00014765,2]
[392413451,1761449015277,-10000.01,0.00014765,2]
[392413452,1761449015387,-10000.01,0.00014765,2]
[392413453,1761449015503,-10000.01,0.00014765,2]
[392413454,1761449015635,-10000.01,0.00014765,2]
[392413455,1761449015754,-10000.01,0.00014765,2]
[392413456,1761449026849,-10000.01,0.00014765,2]
[392413457,1761449026962,-10000.01,0.00014765,2]
[392413458,1761449027083,-10000.01,0.00014765,2]
[392413459,1761449027207,-10000.01,0.00014765,2]
[392413460,1761449027365,-10000.01,0.00014765,2]
[392413461,1761449027577,-10000.01,0.00014765,2]
[392413462,1761449027708,-10000.01,0.00014765,2]
[392413463,1761449027849,-10000.01,0.00014765,2]
[392413464,1761449028000,-10000.01,0.00014765,2]
[392413465,1761449028144,-10000.01,0.00014765,2]
[392413466,1761449045056,-964.68850307,0.00014471,2]
[392413467,1761449045089,-964.68850307,0.00014617,2]
[392413468,1761449066960,323.61196392,0.00014615,2]
[392413469,1761449089460,323.61196392,0.00014615,2]
[392413470,1761449112362,2056.61196392,0.00014615,2]
[392413472,1761449134893,2056.61196392,0.00014615,2]
[392413473,1761449157768,2056.61196392,0.00014615,2]
[392413474,1761449160931,3830.17410824,0.00013847,2]
[392413475,1761449160952,1005.00425076,0.00013847,2]
[392413476,1761449180819,2056.61196392,0.00014615,2]
[392413477,1761449190899,1421.7085184,0.00013816,2]
[392413478,1761449203658,2230.74604835,0.00014615,2]
[392413484,1761449305933,157.6976018,0.00013773,2]
[392413489,1761449337598,391.08489574,0.00014664,2]
[392413491,1761449406691,999.0,0.00013763,2]
[392413544,1761449432251,-213.55964899,0.00014761,2]
[392413546,1761449432261,-584.60352925,0.00014761,2]
[392413548,1761449432271,-500.0,0.00014761,2]
[392413550,1761449432280,-500.0,0.00014761,2]
[392413553,1761449432290,-358.99508413,0.00014761,2]
[392413555,1761449432299,-500.0,0.00014761,2]
[392413557,1761449432309,-500.0,0.00014761,2]
[392413559,1761449432319,-500.0,0.00014761,2]
[392413561,1761449432328,-500.0,0.00014761,2]
[392413564,1761449432338,-500.0,0.00014761,2]
[392413567,1761449432348,-500.0,0.00014761,2]
[392413569,1761449432357,-500.0,0.00014761,2]
[392413571,1761449432366,-500.0,0.00014761,2]
[392413574,1761449432376,-500.0,0.00014761,2]
[392413576,1761449432386,-500.0,0.00014761,2]
[392413578,1761449432396,-500.0,0.00014761,2]
[392413580,1761449432406,-500.0,0.00014761,2]
[392413582,1761449432415,-442.77351895,0.00014761,2]
[392413584,1761449432424,-500.0,0.00014761,2]
[392413586,1761449432434,-250.0,0.00014761,2]
[392413588,1761449432444,-500.0,0.00014761,2]
[392413590,1761449432454,-500.0,0.00014761,2]
[392413592,1761449432463,-300.0,0.00014761,2]
[392413594,1761449432472,-233.0,0.00014761,2]
[392413596,1761449432481,-1200.0,0.00014761,2]
[392413598,1761449432490,-500.0,0.00014762,2]
[392413600,1761449432499,-1200.0,0.00014762,2]
[392413602,1761449432509,-284.33182861,0.00014764,2]
[392413604,1761449432518,-550.72012206,0.00014764,2]
[392413606,1761449432528,-2152.02998146,0.00014765,2]
[392413608,1761449432540,-625.36181593,0.00014765,2]
[392413610,1761449432550,-551.30756395,0.00014765,2]
[392414166,1761449438042,-500.0,0.00014761,2]
[392414168,1761449438052,-500.0,0.00014761,2]
[392414170,1761449438062,-205.24441864,0.00014761,2]
[392414172,1761449438073,-294.75558136,0.00014761,2]
[392414174,1761449438083,-294.27592659,0.00014761,2]
[392414176,1761449438095,-205.72407341,0.00014761,2]
[392414178,1761449438105,-326.97976642,0.00014761,2]
[392414181,1761449438122,-173.02023358,0.00014761,2]
[392414183,1761449438131,-500.0,0.00014761,2]
[392414185,1761449438141,-500.0,0.00014761,2]
[392414187,1761449438151,-500.0,0.00014761,2]
[392414190,1761449438160,-500.0,0.00014761,2]
[392414192,1761449438169,-500.0,0.00014761,2]
[392414194,1761449438178,-500.0,0.00014761,2]
[392414196,1761449438188,-500.0,0.00014761,2]
[392414198,1761449438199,-500.0,0.00014761,2]
[392414200,1761449438208,-500.0,0.00014761,2]
[392414202,1761449438217,-500.0,0.00014761,2]
[392414204,1761449438226,-500.0,0.00014761,2]
[392414206,1761449438235,-500.0,0.00014761,2]
[392414208,1761449438245,-500.0,0.00014761,2]
[392414210,1761449438255,-500.0,0.00014761,2]
[392414212,1761449438264,-348.89403816,0.00014761,2]
[392414215,1761449438276,-151.10596184,0.00014761,2]
[392414217,1761449438285,-500.0,0.00014761,2]
[392414219,1761449438295,-465.3466308,0.00014761,2]
[392414221,1761449438307,-34.6533692,0.00014761,2]
[392414223,1761449438316,-500.0,0.00014761,2]
[392414225,1761449438325,-146.17450693,0.00014761,2]
[392414434,1761449440356,-353.82549307,0.00014761,2]
[392414436,1761449440365,-500.0,0.00014761,2]
[392414438,1761449440374,-146.17450693,0.00014761,2]
[392414440,1761449440385,-353.82549307,0.00014761,2]
[392414442,1761449440394,-146.17450693,0.00014761,2]
[392414923,1761449446347,-353.82549307,0.00014761,2]
[392414924,1761449446356,-500.0,0.00014761,2]
[392414925,1761449446369,-500.0,0.00014761,2]
[392414926,1761449446380,-366.4891626,0.00014761,2]
[392414927,1761449446389,-500.0,0.00014761,2]
[392414928,1761449446400,-500.0,0.00014761,2]
[392414929,1761449446410,-500.0,0.00014761,2]
[392414930,1761449446607,-500.0,0.00014761,2]
[392414931,1761449446619,-402.13454016,0.00014761,2]
[392414932,1761449462203,205.71469249,0.00014662,2]
[392414938,1761449569074,1532.44202854,0.000147,2]
[392414939,1761449569095,8467.55797146,0.000147,2]
[392414940,1761449584333,1139.0,0.000147,2]
[392414941,1761449602337,393.45202854,0.00014,2]
[392414942,1761449602358,1012.54797146,0.00014,2]
[392414943,1761449602870,342.19928379,0.00014665,2]
[392414944,1761449676399,220.43717552,0.00014198,2]
[392414945,1761449689453,-500.0,0.00014761,2]
[392414946,1761449689476,-500.0,0.00014763,2]
[392414947,1761449689498,-500.0,0.00014763,2]
[392414948,1761449689518,-500.0,0.00014763,2]
[392414949,1761449689541,-300.87808922,0.00014763,2]
[392414950,1761449689562,-500.0,0.00014763,2]
[392414951,1761449689584,-500.0,0.00014763,2]
[392414952,1761449689607,-500.0,0.00014763,2]
[392414953,1761449689628,-577.7979675,0.00014763,2]
[392414954,1761449689652,-500.0,0.00014763,2]
[392414955,1761449689673,-278.13437471,0.00014763,2]
[392414956,1761449689696,-500.0,0.00014763,2]
[392414957,1761449689719,-500.0,0.00014763,2]
[392414958,1761449689739,-500.0,0.00014763,2]
[392414959,1761449689759,-500.0,0.00014763,2]
[392414960,1761449689779,-500.0,0.00014763,2]
[392414961,1761449689799,-500.0,0.00014763,2]
[392414962,1761449689819,-500.0,0.00014763,2]
[392414963,1761449689839,-500.0,0.00014763,2]
[392414964,1761449689859,-621.21399088,0.00014763,2]
[392414965,1761449689880,-500.0,0.00014763,2]
[392414966,1761449689900,-500.0,0.00014763,2]
[392414967,1761449689921,-500.0,0.00014763,2]
[392414968,1761449689942,-500.0,0.00014763,2]
[392414969,1761449689963,-500.0,0.00014763,2]
[392414970,1761449689985,-500.0,0.00014763,2]
[392414971,1761449690006,-500.0,0.00014763,2]
[392414972,1761449690035,-500.0,0.00014763,2]
[392414973,1761449690056,-500.0,0.00014763,2]
[392414974,1761449690076,-500.0,0.00014763,2]
[392414975,1761449690097,-500.0,0.00014763,2]
[392414976,1761449690118,-500.0,0.00014763,2]
[392414977,1761449690139,-500.0,0.00014763,2]
[392414978,1761449690161,-500.0,0.00014763,2]
[392414979,1761449690182,-500.0,0.00014763,2]
[392414980,1761449690209,-500.0,0.00014763,2]
[392414981,1761449690232,-500.0,0.00014763,2]
[392414982,1761449690254,-500.0,0.00014763,2]
[392414983,1761449690279,-500.0,0.00014763,2]
[392414984,1761449690302,-500.0,0.00014763,2]
[392414985,1761449690324,-500.0,0.00014763,2]
[392414986,1761449690347,-500.0,0.00014763,2]
[392414987,1761449690370,-207.32928466,0.00014763,2]
[392414988,1761449690391,-500.0,0.00014763,2]
[392414989,1761449690412,-500.0,0.00014763,2]
[392414990,1761449690436,-500.0,0.00014763,2]
[392414991,1761449690458,-500.0,0.00014763,2]
[392414992,1761449690480,-300.0,0.00014763,2]
[392414993,1761449690502,-396.20004651,0.00014764,2]
[392414994,1761449690523,-500.0,0.00014764,2]
[392414995,1761449690543,-500.0,0.00014764,2]
[392414996,1761449690563,-500.0,0.00014764,2]
[392414997,1761449690583,-500.0,0.00014764,2]
[392414998,1761449690604,-500.0,0.00014764,2]
[392414999,1761449690626,-66671.00063866,0.00014765,2]
[392415000,1761449690649,-300.0,0.000148,2]
[392415001,1761449690670,-300.0,0.000148,2]
[392415002,1761449690692,-300.0,0.000148,2]
[392415003,1761449690716,-300.0,0.000148,2]
[392415004,1761449690739,-5947.44560786,0.0001486,2]
[392415005,1761449710982,-100000.0,0.0001486,2]
[392415006,1761449755660,-2663.88737817,0.00014761,2]
[392415007,1761449755686,-17336.11262183,0.0001486,2]
[392415008,1761449781427,2035.14234491,0.00014626,2]
[392415009,1761449799910,366.0,0.00014449,2]
[392415010,1761449803241,366.0,0.00014528,2]
[392415011,1761449806561,366.0,0.00014385,2]
[392415012,1761449886805,1699.013314,0.00013872,2]
[392415015,1761450178987,500.0,0.00014244,2]
[392415016,1761450183838,502.76846529,0.00014045,2]
[392415017,1761450192138,-299.42437336,0.00014719,2]
[392415018,1761450192163,-4207.04228539,0.0001472,2]
[392415019,1761450192338,-987.0766825,0.0001472,2]
[392415020,1761450192365,-300.0,0.00014756,2]
[392415021,1761450192391,-2231.73766715,0.00014757,2]
[392415022,1761450198322,-2962.3813007,0.00014757,2]
[392415023,1761450198350,-500.0,0.00014761,2]
[392415024,1761450198378,-500.0,0.00014761,2]
[392415025,1761450198408,-500.0,0.00014761,2]
[392415026,1761450198435,-500.0,0.00014761,2]
[392415027,1761450198579,-300.0,0.00014763,2]
[392415028,1761450198607,-1200.0,0.00014763,2]
[392415029,1761450198634,-291.24599899,0.00014763,2]
[392415030,1761450198663,-263.71328977,0.00014763,2]
[392415031,1761450198703,-500.0,0.00014763,2]
[392415032,1761450198737,-500.0,0.00014763,2]
[392415033,1761450198773,-500.0,0.00014763,2]
[392415034,1761450198814,-500.0,0.00014763,2]
[392415035,1761450198852,-500.0,0.00014763,2]
[392415036,1761450198889,-390.09142248,0.00014763,2]
[392415037,1761450207248,-109.90857752,0.00014763,2]
[392415038,1761450207276,-500.0,0.00014763,2]
[392415039,1761450207304,-500.0,0.00014763,2]
[392415040,1761450207332,-500.0,0.00014763,2]
[392415041,1761450207679,-320.73292847,0.00014763,2]
[392415042,1761450207726,-500.0,0.00014763,2]
[392415043,1761450207754,-500.0,0.00014763,2]
[392415044,1761450207783,-214.46127497,0.00014763,2]
[392415045,1761450207814,-500.0,0.00014764,2]
[392415046,1761450207841,-500.0,0.00014764,2]
[392415047,1761450207868,-500.0,0.00014764,2]
[392415048,1761450207894,-209.80443808,0.00014764,2]
[392415049,1761450213311,-290.19556192,0.00014764,2]
[392415050,1761450213340,-500.0,0.00014764,2]
[392415051,1761450213370,-500.0,0.00014764,2]
[392415052,1761450213399,-500.0,0.00014764,2]
[392415053,1761450213427,-500.0,0.00014764,2]
[392415054,1761450213456,-500.0,0.00014764,2]
[392415055,1761450213483,-292.48623065,0.00014764,2]
[392415056,1761450213509,-500.0,0.00014764,2]
[392415057,1761450213537,-372.1683915,0.00014764,2]
[392415058,1761450213564,-1000.0,0.00014764,2]
[392415059,1761450225539,-1000.0,0.00014764,2]
[392415060,1761450225566,-1000.0,0.00014764,2]
[392415061,1761450225594,-1000.0,0.00014764,2]
[392415062,1761450225620,-684.68087816,0.00014764,2]
[392415064,1761450246895,-370.61185809,0.00014763,2]
[392415065,1761450246925,-4064.66731597,0.00014794,2]
[392415066,1761450255943,-2289.0,0.00014595,2]
[392415067,1761450255972,-1129.45165188,0.00014794,2]
[392415068,1761450256002,-629.65989746,0.00014819,2]
[392415069,1761450256030,-334.18016553,0.00014819,2]
[392415070,1761450256058,-300.0,0.00014819,2]
[392415071,1761450274167,-2289.0,0.00014819,2]
[392415072,1761450298590,-646.74810316,0.00014819,2]
[392415073,1761450307564,-300.0,0.00014819,2]
[392415074,1761450307591,-1200.0,0.00014819,2]
[392415075,1761450307842,-2049.60270362,0.0001482,2]
[392415076,1761450313715,-10000.01,0.0001482,2]
[392415077,1761450326024,-10000.01,0.0001482,2]
[392415079,1761450359098,300.69755473,0.00030136,120]
[392415081,1761450415431,-300.0,0.00014819,2]
[392415082,1761450415463,-9400.01,0.0001482,2]
[392415083,1761450415642,-10000.01,0.0001482,2]
[392415084,1761450415746,-10000.01,0.0001482,2]
[392415085,1761450415860,-10000.01,0.0001482,2]
[392415086,1761450415964,-10000.01,0.0001482,2]
[392415087,1761450416074,-10000.01,0.0001482,2]
[392415088,1761450416181,-10000.01,0.0001482,2]
[392415089,1761450416293,-10000.01,0.0001482,2]
[392415090,1761450416407,-10000.01,0.0001482,2]
[392415091,1761450416514,-10000.01,0.0001482,2]
[392415092,1761450428513,-264.83857839,0.0001472,2]
[392415093,1761450428541,-300.0,0.00014819,2]
[392415094,1761450428584,-8870.33284322,0.0001482,2]
[392415095,1761450428648,-10000.01,0.0001482,2]
[392415096,1761450428756,-10000.01,0.0001482,2]
[392415097,1761450428854,-10000.01,0.0001482,2]
[392415098,1761450429149,-10000.01,0.0001482,2]
[392415099,1761450429259,-10000.01,0.0001482,2]
[392415100,1761450429361,-10000.01,0.0001482,2]
[392415101,1761450429478,-3906.10709196,0.0001482,2]
[392415102,1761450429514,-2187.79581608,0.0001482,2]
[392415103,1761450429580,-4924.89611078,0.0001482,2]
[392415104,1761450429601,-150.21777844,0.0001482,2]
[392415105,1761450449703,7383.6588302,0.00013878,2]
[392415106,1761450478978,168.0,0.00014546,2]
[392415107,1761450488880,386.0,0.0001459,2]
[392415108,1761450499600,386.0,0.00014647,2]
[392415109,1761450505389,386.0,0.00014635,2]
[392415110,1761450563299,250.0,0.00013674,2]
[392415111,1761450575487,800.0,0.00014648,2]
[392415112,1761450575538,800.0,0.00014521,2]
[392415139,1761450632451,-753.06,0.00014736,2]
[392415141,1761450632462,-386.0,0.00014737,2]
[392415143,1761450632472,-563.0,0.00014789,2]
[392415144,1761450632481,-4238.39336817,0.00014797,2]
[392415146,1761450632490,-331.29197957,0.00014819,2]
[392415147,1761450632501,-1200.0,0.00014858,2]
[392415148,1761450632510,-1200.0,0.00014859,2]
[392415149,1761450632519,-300.0,0.00014859,2]
[392415150,1761450632528,-13889.63463393,0.0001486,2]
[392415152,1761450632538,-163.0,0.0001486,2]
[392415154,1761450632547,-166.0,0.0001486,2]
[392415156,1761450632557,-166.0,0.0001486,2]
[392415158,1761450632566,-166.0,0.0001486,2]
[392415160,1761450632575,-166.0,0.0001486,2]
[392415161,1761450632584,-166.0,0.0001486,2]
[392415162,1761450632594,-1937.7616858,0.0001486,2]
[392415163,1761450632605,-9273.63718222,0.0001486,2]
[392415165,1761450632624,-773.89214163,0.0001486,2]
[392415166,1761450641073,-171.43838817,0.00014765,2]
[392415167,1761450641082,-360.27161183,0.0001486,2]
[392415176,1761450646476,-4167.2889556,0.0001486,2]
[392415177,1761450646488,-1915.16969604,0.0001486,2]
[392415178,1761450646497,-163.0,0.0001486,2]
[392415179,1761450646506,-331.0,0.0001486,2]
[392415180,1761450646515,-170.87390767,0.0001486,2]
[392415181,1761450646524,-500.0,0.00014863,2]
[392415182,1761450646533,-237.47336434,0.00014863,2]
[392415183,1761450646544,-262.52663566,0.00014863,2]
[392415184,1761450646553,-178.86268478,0.00014873,2]
[392415185,1761450695476,800.0,0.00014693,2]
[392415186,1761450710343,310.0,0.00014495,2]
[392415187,1761450715575,4000.0,0.00030137,120]
[392415188,1761450717567,2035.14234491,0.00014583,2]
[392415189,1761450720835,310.0,0.00014494,2]
[392415190,1761450726661,310.0,0.00014363,2]
[392415191,1761450763613,200.70929536,0.00014653,2]
[392415192,1761450815531,800.0,0.00014603,2]
[392415193,1761450820558,2998.15835973,0.000147,2]
[392415194,1761450820582,1085.79864027,0.000147,2]
[392415195,1761450830306,1345.12140647,0.00014635,2]
[392415197,1761450866467,193.11,0.00015216,9]
[392415199,1761450986180,10000.0,0.00030137,120]
[392415200,1761450994040,7569.08995326,0.000147,2]
[392415201,1761450994061,2430.91004674,0.000147,2]
[392415202,1761451211594,2035.14234491,0.00014671,2]
[392415204,1761451248608,1228.620993,0.00013699,2]
[392415205,1761451264566,312.98446795,0.00014696,2]
[392415207,1761451504677,3390.71469452,0.00014699,2]
[392415208,1761451544788,273.86140943,0.00014699,2]
[392415210,1761451739932,327.77604345,0.00014696,2]
[392415211,1761451739954,1707.36630146,0.00014696,2]
[392415212,1761451825201,239.62873326,0.00014687,2]
[392415237,1761451832540,-310.0,0.00014735,2]
[392415238,1761451832550,-213.96859442,0.00014781,2]
[392415239,1761451832559,-310.0,0.00014782,2]
[392415240,1761451832569,-139.60140558,0.00014785,2]
[392415241,1761451832580,-1060.39859442,0.00014785,2]
[392415242,1761451832589,-300.0,0.00014786,2]
[392415243,1761451832598,-300.0,0.00014786,2]
[392415244,1761451832607,-300.0,0.00014786,2]
[392415245,1761451832616,-300.0,0.00014786,2]
[392415246,1761451832625,-300.0,0.00014786,2]
[392415247,1761451832635,-632.72279482,0.00014786,2]
[392415248,1761451832644,-284.83137456,0.00014786,2]
[392415249,1761451832652,-766.2135929,0.00014787,2]
[392415250,1761451832662,-399.11684911,0.00014787,2]
[392415251,1761451832671,-633.92194151,0.00014787,2]
[392415252,1761451832680,-578.29940016,0.00014787,2]
[392415254,1761451832743,-187.91419274,0.00014787,2]
[392415256,1761451832752,-500.0,0.00014787,2]
[392415258,1761451832761,-766.2135929,0.00014787,2]
[392415259,1761451832770,-766.2135929,0.00014787,2]
[392415260,1761451832778,-766.2135929,0.00014787,2]
[392415261,1761451832788,-766.2135929,0.00014787,2]
[392415262,1761451832797,-766.2135929,0.00014787,2]
[392415263,1761451832809,-323.28913038,0.00014787,2]
[392415264,1761451832820,-442.92446252,0.00014787,2]
[392415265,1761451832829,-341.39553748,0.00014787,2]
[392415266,1761451832840,-424.81805542,0.00014787,2]
[392415267,1761451832850,-766.2135929,0.00014787,2]
[392415268,1761451832859,-366.16012772,0.00014787,2]
[392415275,1761451838505,-400.05346518,0.00014787,2]
[392415276,1761451838515,-766.2135929,0.00014787,2]
[392415277,1761451838524,-766.2135929,0.00014787,2]
[392415278,1761451838534,-766.2135929,0.00014787,2]
[392415279,1761451838544,-377.71866885,0.00014787,2]
[392415280,1761451838561,-388.49492405,0.00014787,2]
[392415281,1761451838571,-766.2135929,0.00014787,2]
[392415282,1761451838580,-766.2135929,0.00014787,2]
[392415283,1761451838589,-766.2135929,0.00014787,2]
[392415284,1761451838598,-766.2135929,0.00014787,2]
[392415285,1761451838609,-766.2135929,0.00014787,2]
[392415286,1761451838618,-766.2135929,0.00014787,2]
[392415287,1761451838628,-766.2135929,0.00014787,2]
[392415288,1761451838638,-766.2135929,0.00014787,2]
[392415290,1761451838647,-766.2135929,0.00014787,2]
[392415291,1761451838656,-766.2135929,0.00014787,2]
[392415292,1761451838665,-766.2135929,0.00014787,2]
[392415293,1761451838674,-766.2135929,0.00014787,2]
[392415294,1761451838683,-766.2135929,0.00014787,2]
[392415295,1761451838692,-766.2135929,0.00014787,2]
[392415296,1761451838701,-766.2135929,0.00014787,2]
[392415297,1761451838711,-766.2135929,0.00014787,2]
[392415298,1761451838720,-766.2135929,0.00014787,2]
[392415299,1761451838730,-503.83780015,0.00014787,2]
[392415312,1761451840757,-262.37579275,0.00014787,2]
[392415335,1761451840958,-766.2135929,0.00014787,2]
[392415337,1761451840968,-766.2135929,0.00014787,2]
[392415339,1761451840978,-766.2135929,0.00014787,2]
[392415341,1761451840987,-766.2135929,0.00014787,2]
[392415343,1761451840997,-766.2135929,0.00014787,2]
[392415345,1761451841006,-766.2135929,0.00014787,2]
[392415347,1761451841015,-766.2135929,0.00014787,2]
[392415349,1761451841024,-766.2135929,0.00014787,2]
[392415351,1761451841034,-766.2135929,0.00014787,2]
[392415353,1761451841043,-766.2135929,0.00014787,2]
[392415355,1761451841052,-766.2135929,0.00014787,2]
[392415357,1761451841063,-766.2135929,0.00014787,2]
[392415359,1761451841072,-766.2135929,0.00014787,2]
[392415361,1761451841081,-766.2135929,0.00014787,2]
[392415363,1761451841091,-766.2135929,0.00014787,2]
[392415365,1761451841099,-766.2135929,0.00014787,2]
[392415367,1761451841108,-766.2135929,0.00014787,2]
[392415368,1761451841118,-766.2135929,0.00014787,2]
[392415369,1761451841127,-766.2135929,0.00014787,2]
[392415370,1761451841136,-766.2135929,0.00014787,2]
[392415371,1761451841145,-766.2135929,0.00014787,2]
[392415372,1761451841155,-766.2135929,0.00014787,2]
[392415373,1761451841164,-766.2135929,0.00014787,2]
[392415374,1761451841173,-766.2135929,0.00014787,2]
[392415375,1761451841183,-766.2135929,0.00014787,2]
[392415376,1761451841192,-766.2135929,0.00014787,2]
[392415377,1761451841203,-766.2135929,0.00014787,2]
[392415378,1761451841213,-766.2135929,0.00014787,2]
[392415379,1761451841223,-766.2135929,0.00014787,2]
[392415380,1761451841232,-766.2135929,0.00014787,2]
[392415381,1761451841242,-766.2135929,0.00014787,2]
[392415382,1761451841252,-766.2135929,0.00014787,2]
[392415383,1761451841261,-766.2135929,0.00014787,2]
[392415384,1761451841270,-766.2135929,0.00014787,2]
[392415385,1761451841279,-752.28243666,0.00014787,2]
[392415386,1761451841288,-752.28243666,0.00014787,2]
[392415387,1761451841297,-752.28243666,0.00014787,2]
[392415388,1761451841306,-752.28243666,0.00014787,2]
[392415389,1761451841315,-752.28243666,0.00014787,2]
[392415391,1761451841324,-752.28243666,0.00014787,2]
[392415393,1761451841333,-752.28243666,0.00014787,2]
[392415395,1761451841342,-752.28243666,0.00014787,2]
[392415397,1761451841351,-752.28243666,0.00014787,2]
[392415399,1761451841360,-752.28243666,0.00014787,2]
[392415401,1761451841369,-752.28243666,0.00014787,2]
[392415403,1761451841378,-752.28243666,0.00014787,2]
[392415405,1761451841387,-752.28243666,0.00014787,2]
[392415407,1761451841395,-752.28243666,0.00014787,2]
[392415409,1761451841405,-752.28243666,0.00014787,2]
[392415411,1761451841413,-752.28243666,0.00014787,2]
[392415413,1761451841423,-752.28243666,0.00014787,2]
[392415415,1761451841432,-752.28243666,0.00014787,2]
[392415417,1761451841442,-752.28243666,0.00014787,2]
[392415419,1761451841451,-752.28243666,0.00014787,2]
[392415421,1761451841460,-752.28243666,0.00014787,2]
[392415423,1761451841469,-752.28243666,0.00014787,2]
[392415425,1761451841478,-500.0,0.00014789,2]
[392415427,1761451841487,-175.61289279,0.00014789,2]
[392415429,1761451841496,-50038.55454064,0.0001479,2]
[392415610,1761451843732,-59556.96931735,0.0001479,2]
[392415611,1761451843744,-4155.27195149,0.0001479,2]
[392415612,1761451843785,-2138.019511,0.0001479,2]
[392415613,1761451844969,2712.57175564,0.00014699,2]
[392415625,1761451846657,-16128.65349425,0.0001479,2]
[392415626,1761451846711,-7501.40466771,0.0001479,2]
[392415627,1761451846722,-1000.0,0.0001479,2]
[392415628,1761451846732,-1533.78185648,0.0001479,2]
[392415629,1761451846819,-2085.26905335,0.0001479,2]
[392415631,1761451893657,649.33,0.00012329,2]
[392415633,1761452005986,10000.0,0.000191,10]
[392415634,1761452035111,10000.0,0.000201,30]
[392415635,1761452036683,999.0,0.00013797,2]
[392415636,1761452065691,209.67514162,0.00014699,2]
[392415637,1761452151613,308.28050962,0.00014079,2]
[392415638,1761452185299,2170.05740452,0.00014699,2]
[392415639,1761452227981,1004.10015388,0.00014577,2]
[392415640,1761452228002,1031.04219103,0.00014577,2]
[392415641,1761452301575,183.4657489,0.00014699,2]
[392415643,1761452442576,-1200.0,0.00014788,2]